[Event "Late-Titled-Tuesday-Blitz-October-17-2023"]
[Site "Chess.com"]
[Date "2023.10.17"]
[Round "10"]
[White "icy"]
[Black "CraiggoryC"]
[Result "0-1"]
[WhiteElo "2391"]
[BlackElo "2243"]
[TimeControl "180+1"]
[EndTime "15:52:31 PDT"]
[Termination "CraiggoryC won by checkmate"]

1. Nf3 {[%clk 0:03:00.9]} 1... Nf6 {[%clk 0:02:59.1]} 2. g3 {[%clk 0:02:58.5]}
2... d5 {[%clk 0:02:58]} 3. Bg2 {[%clk 0:02:58.8]} 3... e6 {[%clk 0:02:58.6]} 4.
O-O {[%clk 0:02:57.6]} 4... Be7 {[%clk 0:02:59.2]} 5. d3 {[%clk 0:02:55.4]} 5...
c5 {[%clk 0:02:53.6]} 6. c4 {[%clk 0:02:55.7]} 6... O-O {[%clk 0:02:51.8]} 7. b3
{[%clk 0:02:50.1]} 7... d4 {[%clk 0:02:48.8]} 8. a3 {[%clk 0:02:49.6]} 8... Nc6
{[%clk 0:02:47.4]} 9. Nbd2 {[%clk 0:02:47.6]} 9... e5 {[%clk 0:02:46.6]} 10. Rb1
{[%clk 0:02:41.4]} 10... a5 {[%clk 0:02:45.9]} 11. Ne4 {[%clk 0:02:29.2]} 11...
Nxe4 {[%clk 0:02:37.8]} 12. dxe4 {[%clk 0:02:30.1]} 12... f6 {[%clk 0:02:26.9]}
13. Ne1 {[%clk 0:02:26.7]} 13... a4 {[%clk 0:02:26.5]} 14. Nd3 {[%clk
0:02:27.6]} 14... axb3 {[%clk 0:02:24.7]} 15. Qxb3 {[%clk 0:02:25.6]} 15... Na5
{[%clk 0:02:13.1]} 16. Qc2 {[%clk 0:02:22]} 16... Be6 {[%clk 0:02:02.4]} 17. Nb2
{[%clk 0:02:14.3]} 17... Qd6 {[%clk 0:01:27.9]} 18. f4 {[%clk 0:02:12.7]} 18...
Qa6 {[%clk 0:01:27.1]} 19. f5 {[%clk 0:02:03.1]} 19... Bf7 {[%clk 0:01:23.4]}
20. g4 {[%clk 0:02:00.2]} 20... Nxc4 {[%clk 0:01:22.1]} 21. Nxc4 {[%clk
0:01:58.8]} 21... Bxc4 {[%clk 0:01:09.2]} 22. Rxb7 {[%clk 0:01:58.3]} 22... Qxb7
{[%clk 0:00:52.6]} 23. Qxc4+ {[%clk 0:01:57.3]} 23... Kh8 {[%clk 0:00:52.9]} 24.
h4 {[%clk 0:01:57]} 24... Qa6 {[%clk 0:00:47.6]} 25. Qb3 {[%clk 0:01:50.6]}
25... c4 {[%clk 0:00:36.7]} 26. Qh3 {[%clk 0:01:49.7]} 26... Bxa3 {[%clk
0:00:32.3]} 27. g5 {[%clk 0:01:42.7]} 27... Bxc1 {[%clk 0:00:28.7]} 28. Rxc1
{[%clk 0:01:40.5]} 28... c3 {[%clk 0:00:17.4]} 29. Kf2 {[%clk 0:01:00.8]} 29...
Qa3 {[%clk 0:00:15.8]} 30. Rc2 {[%clk 0:00:59.1]} 30... Qa1 {[%clk 0:00:15.4]}
31. Qd3 {[%clk 0:00:54.2]} 31... Ra2 {[%clk 0:00:14.5]} 32. g6 {[%clk 0:00:54]}
32... h6 {[%clk 0:00:13.2]} 33. Bf3 {[%clk 0:00:49.6]} 33... Rxc2 {[%clk
0:00:12.8]} 34. Qxc2 {[%clk 0:00:49.7]} 34... Qb2 {[%clk 0:00:13.5]} 35. Qa4
{[%clk 0:00:46.6]} 35... c2 {[%clk 0:00:13.1]} 36. Qd7 {[%clk 0:00:45.2]} 36...
c1=Q {[%clk 0:00:12.2]} 37. Qe7 {[%clk 0:00:45.6]} 37... Qe3+ {[%clk 0:00:12]}
38. Kg2 {[%clk 0:00:43.4]} 38... Qexe2+ {[%clk 0:00:11.6]} 39. Bxe2 {[%clk
0:00:44]} 39... Qxe2+ {[%clk 0:00:12.1]} 40. Kg3 {[%clk 0:00:43.9]} 40... Qe3+
{[%clk 0:00:12.3]} 41. Kg4 {[%clk 0:00:37.6]} 41... Qxe4+ {[%clk 0:00:12.4]} 42.
Kg3 {[%clk 0:00:38.3]} 42... Qf4+ {[%clk 0:00:12.5]} 43. Kg2 {[%clk 0:00:39]}
43... Qg4+ {[%clk 0:00:12.1]} 44. Kh2 {[%clk 0:00:39.3]} 44... Qxh4+ {[%clk
0:00:12.3]} 45. Kg2 {[%clk 0:00:40]} 45... Qg4+ {[%clk 0:00:12.4]} 46. Kh2
{[%clk 0:00:40.6]} 46... Rg8 {[%clk 0:00:12.1]} 47. Qd6 {[%clk 0:00:36.7]} 47...
Qf4+ {[%clk 0:00:12.1]} 48. Kg2 {[%clk 0:00:36.1]} 48... Qg5+ {[%clk 0:00:11.9]}
49. Kh2 {[%clk 0:00:35]} 49... Qxf5 {[%clk 0:00:12.3]} 50. Qd5 {[%clk
0:00:34.4]} 50... Qh5+ {[%clk 0:00:11.4]} 51. Kg2 {[%clk 0:00:33.4]} 51... Qxg6+
{[%clk 0:00:12]} 52. Kh2 {[%clk 0:00:34]} 52... Qh5+ {[%clk 0:00:11.8]} 53. Kg2
{[%clk 0:00:33.7]} 53... Qg5+ {[%clk 0:00:12.1]} 54. Kh2 {[%clk 0:00:33.7]}
54... Qd2+ {[%clk 0:00:11.8]} 55. Kg1 {[%clk 0:00:31.2]} 55... d3 {[%clk
0:00:11.9]} 56. Qf3 {[%clk 0:00:29.8]} 56... Qe2 {[%clk 0:00:11.1]} 57. Qf2
{[%clk 0:00:30.1]} 57... Qxf2+ {[%clk 0:00:10.9]} 58. Kh1 {[%clk 0:00:30]} 58...
Qg2+ {[%clk 0:00:09.3]} 59. Kxg2 {[%clk 0:00:29.9]} 59... d2 {[%clk 0:00:09.7]}
60. Kg3 {[%clk 0:00:29.1]} 60... d1=Q {[%clk 0:00:09.4]} 61. Kh4 {[%clk
0:00:30]} 61... h5 {[%clk 0:00:08.2]} 62. Kg3 {[%clk 0:00:30]} 62... Qg4+ {[%clk
0:00:07.9]} 63. Kh2 {[%clk 0:00:29.1]} 63... Qh4+ {[%clk 0:00:08]} 64. Kg2
{[%clk 0:00:28.1]} 64... Qg4+ {[%clk 0:00:08]} 65. Kf2 {[%clk 0:00:28.5]} 65...
e4 {[%clk 0:00:07.3]} 66. Ke3 {[%clk 0:00:28.8]} 66... h4 {[%clk 0:00:07.1]} 67.
Kd4 {[%clk 0:00:28.9]} 67... e3+ {[%clk 0:00:07.3]} 68. Kd5 {[%clk 0:00:29.2]}
68... e2 {[%clk 0:00:06.8]} 69. Kd6 {[%clk 0:00:29.8]} 69... e1=Q {[%clk
0:00:06.2]} 70. Kc7 {[%clk 0:00:30.7]} 70... Qc4+ {[%clk 0:00:05.8]} 71. Kd6
{[%clk 0:00:30.8]} 71... Qd3+ {[%clk 0:00:06.1]} 72. Kc5 {[%clk 0:00:30.8]}
72... Qc1+ {[%clk 0:00:06.2]} 73. Kb4 {[%clk 0:00:30.8]} 73... Qdb1+ {[%clk
0:00:06.2]} 74. Ka5 {[%clk 0:00:31.2]} 74... Ra8# {[%clk 0:00:06.3]} 0-1

[Event "Late-Titled-Tuesday-Blitz-October-17-2023"]
[Site "Chess.com"]
[Date "2023.10.17"]
[Round "10"]
[White "VincentKeymer"]
[Black "Jospem"]
[Result "0-1"]
[WhiteElo "3087"]
[BlackElo "3154"]
[TimeControl "180+1"]
[EndTime "15:52:33 PDT"]
[Termination "Jospem won by checkmate"]

1. Nf3 {[%clk 0:03:00.9]} 1... c5 {[%clk 0:02:58.8]} 2. c4 {[%clk 0:02:59.6]}
2... Nc6 {[%clk 0:02:59.4]} 3. Nc3 {[%clk 0:02:59.5]} 3... g6 {[%clk 0:03:00]}
4. e3 {[%clk 0:02:59.7]} 4... Bg7 {[%clk 0:03:00.6]} 5. d4 {[%clk 0:03:00.3]}
5... d6 {[%clk 0:03:01.4]} 6. Be2 {[%clk 0:03:00.6]} 6... e6 {[%clk 0:03:01.4]}
7. O-O {[%clk 0:02:55.8]} 7... Nge7 {[%clk 0:03:01.3]} 8. dxc5 {[%clk
0:02:56.2]} 8... dxc5 {[%clk 0:02:58.3]} 9. Ne4 {[%clk 0:02:56.9]} 9... O-O
{[%clk 0:02:33.9]} 10. Nxc5 {[%clk 0:02:48.2]} 10... Qc7 {[%clk 0:02:25]} 11.
Ne4 {[%clk 0:02:39.1]} 11... Rd8 {[%clk 0:02:23.6]} 12. Qc2 {[%clk 0:02:37.5]}
12... b6 {[%clk 0:02:16.5]} 13. Bd2 {[%clk 0:02:37.4]} 13... Bb7 {[%clk
0:02:16.8]} 14. Bc3 {[%clk 0:02:37.6]} 14... e5 {[%clk 0:02:17.2]} 15. Rfd1
{[%clk 0:02:23.8]} 15... h6 {[%clk 0:02:16.8]} 16. c5 {[%clk 0:02:00.2]} 16...
Nd5 {[%clk 0:02:06.1]} 17. Be1 {[%clk 0:01:51.8]} 17... Nce7 {[%clk 0:01:59.6]}
18. Rac1 {[%clk 0:01:47.9]} 18... Rac8 {[%clk 0:01:59.8]} 19. Qb3 {[%clk
0:01:30.6]} 19... Bc6 {[%clk 0:01:50.3]} 20. Nd6 {[%clk 0:01:25.2]} 20... Rb8
{[%clk 0:01:48.4]} 21. Nb5 {[%clk 0:00:58.2]} 21... Qb7 {[%clk 0:01:36.8]} 22.
Qa3 {[%clk 0:00:58.1]} 22... bxc5 {[%clk 0:01:23.5]} 23. Rxc5 {[%clk 0:00:57.9]}
23... Ra8 {[%clk 0:01:02.2]} 24. Nc3 {[%clk 0:00:38.9]} 24... Nxc3 {[%clk
0:00:40.2]} 25. Bxc3 {[%clk 0:00:38.9]} 25... f6 {[%clk 0:00:40.5]} 26. h3
{[%clk 0:00:25.1]} 26... Bf8 {[%clk 0:00:38.9]} 27. Rxd8 {[%clk 0:00:23.4]}
27... Rxd8 {[%clk 0:00:39.8]} 28. Qa6 {[%clk 0:00:23.7]} 28... Qxa6 {[%clk
0:00:25.4]} 29. Bxa6 {[%clk 0:00:24.6]} 29... Rb8 {[%clk 0:00:25.9]} 30. Bc4+
{[%clk 0:00:22.8]} 30... Kh7 {[%clk 0:00:25.2]} 31. Nxe5 {[%clk 0:00:23.2]}
31... fxe5 {[%clk 0:00:24]} 32. Bxe5 {[%clk 0:00:18.9]} 32... Rd8 {[%clk
0:00:23.2]} 33. Ra5 {[%clk 0:00:18.2]} 33... Rd7 {[%clk 0:00:21.9]} 34. Be6
{[%clk 0:00:16.6]} 34... Rb7 {[%clk 0:00:21.5]} 35. Bd4 {[%clk 0:00:16.2]} 35...
Bg7 {[%clk 0:00:18.3]} 36. Bxg7 {[%clk 0:00:09.1]} 36... Kxg7 {[%clk 0:00:19.2]}
37. b3 {[%clk 0:00:09.7]} 37... Kf6 {[%clk 0:00:19.2]} 38. Bc4 {[%clk
0:00:10.2]} 38... Rc7 {[%clk 0:00:17.3]} 39. f3 {[%clk 0:00:10.2]} 39... Be8
{[%clk 0:00:09.8]} 40. e4 {[%clk 0:00:07.8]} 40... Bf7 {[%clk 0:00:10.5]} 41.
Bxf7 {[%clk 0:00:04.6]} 41... Kxf7 {[%clk 0:00:11.4]} 42. Kf2 {[%clk 0:00:05.1]}
42... g5 {[%clk 0:00:11.5]} 43. h4 {[%clk 0:00:03.4]} 43... gxh4 {[%clk
0:00:11.2]} 44. Rh5 {[%clk 0:00:03.7]} 44... Rc2+ {[%clk 0:00:11]} 45. Kg1
{[%clk 0:00:04.3]} 45... Ng6 {[%clk 0:00:11.1]} 46. Rxh6 {[%clk 0:00:04.4]}
46... Rxa2 {[%clk 0:00:11.8]} 47. Kh2 {[%clk 0:00:04.6]} 47... Kg7 {[%clk
0:00:12]} 48. Rh5 {[%clk 0:00:05]} 48... Kf6 {[%clk 0:00:06.6]} 49. Rf5+ {[%clk
0:00:05.1]} 49... Ke6 {[%clk 0:00:07]} 50. Kh3 {[%clk 0:00:05.6]} 50... Ra1
{[%clk 0:00:07]} 51. Rg5 {[%clk 0:00:04.7]} 51... Kf6 {[%clk 0:00:07]} 52. Rf5+
{[%clk 0:00:04.9]} 52... Ke6 {[%clk 0:00:07.7]} 53. Rg5 {[%clk 0:00:05.5]} 53...
Kf7 {[%clk 0:00:05.2]} 54. Rf5+ {[%clk 0:00:05.7]} 54... Kg7 {[%clk 0:00:05.8]}
55. Rg5 {[%clk 0:00:05.1]} 55... Rg1 {[%clk 0:00:04.7]} 56. f4 {[%clk
0:00:04.6]} 56... Kh6 {[%clk 0:00:05.2]} 57. Rf5 {[%clk 0:00:02.9]} 57... Re1
{[%clk 0:00:05.8]} 58. e5 {[%clk 0:00:02.9]} 58... Re3+ {[%clk 0:00:06.5]} 59.
Kh2 {[%clk 0:00:03.2]} 59... Re4 {[%clk 0:00:06.3]} 60. Rf7 {[%clk 0:00:03.7]}
60... Nxf4 {[%clk 0:00:05.9]} 61. Rxa7 {[%clk 0:00:03.8]} 61... Re2 {[%clk
0:00:05.1]} 62. Ra6+ {[%clk 0:00:03.9]} 62... Kg5 {[%clk 0:00:05.4]} 63. Ra8
{[%clk 0:00:03.4]} 63... Rxg2+ {[%clk 0:00:05.7]} 64. Kh1 {[%clk 0:00:04.3]}
64... Re2 {[%clk 0:00:06.4]} 65. Rg8+ {[%clk 0:00:03.7]} 65... Kf5 {[%clk
0:00:06.8]} 66. e6 {[%clk 0:00:03.2]} 66... Rxe6 {[%clk 0:00:06.1]} 67. b4
{[%clk 0:00:03.2]} 67... Re1+ {[%clk 0:00:06.6]} 68. Kh2 {[%clk 0:00:03.4]}
68... Re2+ {[%clk 0:00:07.3]} 69. Kh1 {[%clk 0:00:04.1]} 69... Rb2 {[%clk
0:00:08]} 70. Rh8 {[%clk 0:00:03.7]} 70... Kg4 {[%clk 0:00:08]} 71. Rg8+ {[%clk
0:00:04.3]} 71... Kh3 {[%clk 0:00:08]} 72. Rg1 {[%clk 0:00:03.4]} 72... Rh2#
{[%clk 0:00:07.7]} 0-1

[Event "Late-Titled-Tuesday-Blitz-October-17-2023"]
[Site "Chess.com"]
[Date "2023.10.17"]
[Round "10"]
[White "AryanTari"]
[Black "Mikasinski"]
[Result "1-0"]
[WhiteElo "2942"]
[BlackElo "2687"]
[TimeControl "180+1"]
[EndTime "15:52:38 PDT"]
[Termination "AryanTari won by checkmate"]

1. Nf3 {[%clk 0:03:00.9]} 1... Nf6 {[%clk 0:02:59.7]} 2. g3 {[%clk 0:03:01.2]}
2... g6 {[%clk 0:02:59.9]} 3. Bg2 {[%clk 0:03:01.6]} 3... Bg7 {[%clk 0:03:00.5]}
4. O-O {[%clk 0:03:01.9]} 4... O-O {[%clk 0:03:01.4]} 5. a4 {[%clk 0:03:00.7]}
5... d6 {[%clk 0:03:02.1]} 6. a5 {[%clk 0:03:00.7]} 6... c5 {[%clk 0:03:01.3]}
7. d4 {[%clk 0:02:55.9]} 7... cxd4 {[%clk 0:03:01]} 8. Nxd4 {[%clk 0:02:55.8]}
8... a6 {[%clk 0:03:01.7]} 9. c4 {[%clk 0:02:55.8]} 9... Re8 {[%clk 0:02:59]}
10. Nc3 {[%clk 0:02:55.6]} 10... Qc7 {[%clk 0:02:59.4]} 11. Bg5 {[%clk
0:02:48.8]} 11... Nbd7 {[%clk 0:02:49.5]} 12. Rc1 {[%clk 0:02:48.5]} 12... h6
{[%clk 0:02:46.6]} 13. Bd2 {[%clk 0:02:44.2]} 13... Qxa5 {[%clk 0:02:44.9]} 14.
Nd5 {[%clk 0:02:31.2]} 14... Qd8 {[%clk 0:02:43.5]} 15. e3 {[%clk 0:02:30.5]}
15... Nc5 {[%clk 0:02:20.2]} 16. b4 {[%clk 0:02:23.1]} 16... Nce4 {[%clk
0:02:16.6]} 17. Nxf6+ {[%clk 0:02:13.5]} 17... Nxf6 {[%clk 0:02:16.7]} 18. Qb3
{[%clk 0:02:06.6]} 18... e5 {[%clk 0:02:11.8]} 19. Ne2 {[%clk 0:02:06.7]} 19...
e4 {[%clk 0:02:12.5]} 20. Bc3 {[%clk 0:02:02.9]} 20... Be6 {[%clk 0:02:11.4]}
21. Nf4 {[%clk 0:02:02.9]} 21... Qe7 {[%clk 0:02:06.7]} 22. Qb2 {[%clk
0:01:52.3]} 22... Bxc4 {[%clk 0:02:02.5]} 23. Rfd1 {[%clk 0:01:48.3]} 23... Rac8
{[%clk 0:01:59]} 24. Bh3 {[%clk 0:01:45.1]} 24... Rc6 {[%clk 0:01:57.7]} 25. Bd4
{[%clk 0:01:35.9]} 25... b5 {[%clk 0:01:56.1]} 26. Ra1 {[%clk 0:01:24.4]} 26...
g5 {[%clk 0:01:55.5]} 27. Ne2 {[%clk 0:01:17.9]} 27... Be6 {[%clk 0:01:40]} 28.
Bg2 {[%clk 0:01:15.1]} 28... Rec8 {[%clk 0:01:37]} 29. Nc3 {[%clk 0:01:15.1]}
29... d5 {[%clk 0:01:31.9]} 30. h3 {[%clk 0:01:06.4]} 30... Qd7 {[%clk
0:01:09.3]} 31. Nxe4 {[%clk 0:00:52.5]} 31... Nxe4 {[%clk 0:00:54]} 32. Bxg7
{[%clk 0:00:53.4]} 32... Rc2 {[%clk 0:00:52.9]} 33. Qe5 {[%clk 0:00:40.5]} 33...
Qc7 {[%clk 0:00:46.7]} 34. Qxc7 {[%clk 0:00:17.5]} 34... R8xc7 {[%clk
0:00:45.4]} 35. Be5 {[%clk 0:00:17.3]} 35... Rc8 {[%clk 0:00:27.7]} 36. Bxe4
{[%clk 0:00:14.8]} 36... dxe4 {[%clk 0:00:26.7]} 37. Rxa6 {[%clk 0:00:14.7]}
37... Rc1 {[%clk 0:00:21.4]} 38. Rxc1 {[%clk 0:00:14.9]} 38... Rxc1+ {[%clk
0:00:21.6]} 39. Kg2 {[%clk 0:00:15.8]} 39... Kh7 {[%clk 0:00:19.7]} 40. g4
{[%clk 0:00:15.4]} 40... Rc4 {[%clk 0:00:18.9]} 41. Ra8 {[%clk 0:00:14.5]} 41...
Rc8 {[%clk 0:00:19.1]} 42. Ra7 {[%clk 0:00:14.1]} 42... Kg6 {[%clk 0:00:18.8]}
43. Rb7 {[%clk 0:00:13.7]} 43... Bc4 {[%clk 0:00:17.4]} 44. Rb6+ {[%clk
0:00:13.9]} 44... Kh7 {[%clk 0:00:18]} 45. Kg3 {[%clk 0:00:14.1]} 45... Re8
{[%clk 0:00:17.2]} 46. Bd4 {[%clk 0:00:14.5]} 46... Ra8 {[%clk 0:00:16.8]} 47.
h4 {[%clk 0:00:14.4]} 47... Ra2 {[%clk 0:00:15.5]} 48. Rb8 {[%clk 0:00:10.7]}
48... gxh4+ {[%clk 0:00:15.2]} 49. Kxh4 {[%clk 0:00:11]} 49... f6 {[%clk
0:00:11.7]} 50. Bxf6 {[%clk 0:00:06.7]} 50... Rxf2 {[%clk 0:00:10.8]} 51. Be5
{[%clk 0:00:06.9]} 51... Rf3 {[%clk 0:00:07.9]} 52. Bf4 {[%clk 0:00:06.2]} 52...
Bf1 {[%clk 0:00:07.1]} 53. Rb7+ {[%clk 0:00:05.7]} 53... Kg6 {[%clk 0:00:06.2]}
54. Rb6+ {[%clk 0:00:06.1]} 54... Kg7 {[%clk 0:00:06.8]} 55. Bxh6+ {[%clk
0:00:06.3]} 55... Kh7 {[%clk 0:00:06.7]} 56. Bf4 {[%clk 0:00:05.4]} 56... Bc4
{[%clk 0:00:04.5]} 57. g5 {[%clk 0:00:04.7]} 57... Bf7 {[%clk 0:00:02.5]} 58.
Rf6 {[%clk 0:00:03.8]} 58... Bg6 {[%clk 0:00:03.2]} 59. Rb6 {[%clk 0:00:04]}
59... Bf5 {[%clk 0:00:02.7]} 60. Rb7+ {[%clk 0:00:03.3]} 60... Kg6 {[%clk
0:00:03.4]} 61. Rb6+ {[%clk 0:00:03.8]} 61... Kh7 {[%clk 0:00:03.7]} 62. g6+
{[%clk 0:00:03.6]} 62... Bxg6 {[%clk 0:00:04]} 63. Kg5 {[%clk 0:00:04.3]} 63...
Rf1 {[%clk 0:00:01.7]} 64. Rb7+ {[%clk 0:00:03.9]} 64... Bf7 {[%clk 0:00:01.9]}
65. Rxf7+ {[%clk 0:00:03.7]} 65... Kg8 {[%clk 0:00:02.6]} 66. Rb7 {[%clk
0:00:04.6]} 66... Rg1+ {[%clk 0:00:02.1]} 67. Kf6 {[%clk 0:00:04.8]} 67... Rh1
{[%clk 0:00:02.1]} 68. Rxb5 {[%clk 0:00:05]} 68... Kf8 {[%clk 0:00:01.5]} 69.
Rb8# {[%clk 0:00:01.4]} 1-0

[Event "Late-Titled-Tuesday-Blitz-October-17-2023"]
[Site "Chess.com"]
[Date "2023.10.17"]
[Round "10"]
[White "mind1mover"]
[Black "djano"]
[Result "1-0"]
[WhiteElo "2878"]
[BlackElo "2677"]
[TimeControl "180+1"]
[EndTime "15:52:43 PDT"]
[Termination "mind1mover won on time"]

1. Nf3 {[%clk 0:03:00.9]} 1... g6 {[%clk 0:02:58.8]} 2. g3 {[%clk 0:02:51.7]}
2... Bg7 {[%clk 0:02:58.6]} 3. Bg2 {[%clk 0:02:52.2]} 3... c5 {[%clk 0:02:58]}
4. e4 {[%clk 0:02:40.7]} 4... Nc6 {[%clk 0:02:57.4]} 5. O-O {[%clk 0:02:41.1]}
5... d6 {[%clk 0:02:57]} 6. c3 {[%clk 0:02:37.4]} 6... Nf6 {[%clk 0:02:54.5]} 7.
Re1 {[%clk 0:02:36.9]} 7... e5 {[%clk 0:02:50.1]} 8. a3 {[%clk 0:02:37]} 8...
O-O {[%clk 0:02:49.7]} 9. d3 {[%clk 0:02:31.8]} 9... Ne8 {[%clk 0:02:42.7]} 10.
b4 {[%clk 0:02:29.4]} 10... b6 {[%clk 0:02:38.9]} 11. Nbd2 {[%clk 0:02:14.5]}
11... f5 {[%clk 0:02:37.6]} 12. exf5 {[%clk 0:02:09.1]} 12... Bxf5 {[%clk
0:02:34.7]} 13. Qb3+ {[%clk 0:01:57.9]} 13... Kh8 {[%clk 0:02:35]} 14. bxc5
{[%clk 0:01:37.4]} 14... bxc5 {[%clk 0:02:26.5]} 15. Ne4 {[%clk 0:01:37.3]}
15... Rb8 {[%clk 0:02:09.5]} 16. Qa4 {[%clk 0:01:37.5]} 16... Bd7 {[%clk
0:02:05.6]} 17. Qc2 {[%clk 0:01:37.2]} 17... h6 {[%clk 0:01:48.2]} 18. Nh4
{[%clk 0:01:16.3]} 18... Kh7 {[%clk 0:01:46.8]} 19. d4 {[%clk 0:01:16.7]} 19...
Bf5 {[%clk 0:01:43.4]} 20. Nxf5 {[%clk 0:01:05.3]} 20... gxf5 {[%clk 0:01:43.3]}
21. Nxc5 {[%clk 0:00:57.1]} 21... dxc5 {[%clk 0:01:31.1]} 22. Bxc6 {[%clk
0:00:57.3]} 22... cxd4 {[%clk 0:01:31.4]} 23. cxd4 {[%clk 0:00:48.5]} 23... e4
{[%clk 0:01:05.5]} 24. Bf4 {[%clk 0:00:46.8]} 24... Rc8 {[%clk 0:01:04.6]} 25.
Rad1 {[%clk 0:00:39.7]} 25... Nf6 {[%clk 0:00:53.9]} 26. Qa4 {[%clk 0:00:19.3]}
26... Nd5 {[%clk 0:00:49.6]} 27. Bxd5 {[%clk 0:00:18.4]} 27... Qxd5 {[%clk
0:00:50.5]} 28. Qxa7 {[%clk 0:00:18]} 28... Rc2 {[%clk 0:00:47.5]} 29. Qa4
{[%clk 0:00:09.5]} 29... Qa2 {[%clk 0:00:46.3]} 30. Be3 {[%clk 0:00:07.9]} 30...
h5 {[%clk 0:00:43]} 31. h4 {[%clk 0:00:07.8]} 31... Bh6 {[%clk 0:00:41.9]} 32.
Ra1 {[%clk 0:00:05.6]} 32... Qb2 {[%clk 0:00:36.9]} 33. Qd7+ {[%clk 0:00:05.6]}
33... Kg6 {[%clk 0:00:34.6]} 34. Qe6+ {[%clk 0:00:04.1]} 34... Rf6 {[%clk
0:00:33.9]} 35. Qg8+ {[%clk 0:00:04.7]} 35... Bg7 {[%clk 0:00:34.4]} 36. Rab1
{[%clk 0:00:04]} 36... Qa2 {[%clk 0:00:34.3]} 37. Qxa2 {[%clk 0:00:03.2]} 37...
Rxa2 {[%clk 0:00:35.2]} 38. Ra1 {[%clk 0:00:04.1]} 38... Rc2 {[%clk 0:00:30.4]}
39. Rec1 {[%clk 0:00:04.5]} 39... Re2 {[%clk 0:00:27.8]} 40. Kf1 {[%clk
0:00:03.8]} 40... Rb2 {[%clk 0:00:26.8]} 41. Rcb1 {[%clk 0:00:04.5]} 41... Rc2
{[%clk 0:00:26.9]} 42. a4 {[%clk 0:00:04]} 42... Bh6 {[%clk 0:00:26.2]} 43. Bxh6
{[%clk 0:00:01.7]} 43... Kxh6 {[%clk 0:00:27.1]} 44. a5 {[%clk 0:00:02.3]} 44...
f4 {[%clk 0:00:27.2]} 45. Rb6 {[%clk 0:00:02.5]} 45... Rxb6 {[%clk 0:00:20.1]}
46. axb6 {[%clk 0:00:03.4]} 46... fxg3 {[%clk 0:00:20.8]} 47. Rb1 {[%clk
0:00:02.2]} 47... Rxf2+ {[%clk 0:00:19.2]} 48. Kg1 {[%clk 0:00:02.5]} 48... Rf8
{[%clk 0:00:17.1]} 49. Kg2 {[%clk 0:00:02.8]} 49... e3 {[%clk 0:00:16.3]} 50. b7
{[%clk 0:00:02.6]} 50... e2 {[%clk 0:00:16.1]} 51. Kxg3 {[%clk 0:00:02]} 51...
Kg6 {[%clk 0:00:14.2]} 52. Rb6+ {[%clk 0:00:01.7]} 52... Kg7 {[%clk 0:00:13.7]}
53. Rb1 {[%clk 0:00:02.4]} 53... Kg6 {[%clk 0:00:10.3]} 54. Re1 {[%clk
0:00:02.9]} 54... Rb8 {[%clk 0:00:09.7]} 55. Rxe2 {[%clk 0:00:03.5]} 55... Rxb7
{[%clk 0:00:10.4]} 56. Re6+ {[%clk 0:00:04.1]} 56... Kg7 {[%clk 0:00:10.3]} 57.
Kf4 {[%clk 0:00:03.8]} 57... Rb3 {[%clk 0:00:09.8]} 58. Kg5 {[%clk 0:00:03.4]}
58... Rd3 {[%clk 0:00:10.1]} 59. Re4 {[%clk 0:00:03.2]} 59... Rg3+ {[%clk
0:00:09.2]} 60. Kxh5 {[%clk 0:00:03.8]} 60... Kf6 {[%clk 0:00:10.1]} 61. Rf4+
{[%clk 0:00:03.7]} 61... Ke6 {[%clk 0:00:08.9]} 62. Rg4 {[%clk 0:00:04.3]} 62...
Rf3 {[%clk 0:00:08.9]} 63. Kg6 {[%clk 0:00:02.6]} 63... Rf8 {[%clk 0:00:07.3]}
64. Re4+ {[%clk 0:00:02]} 64... Kd5 {[%clk 0:00:07.4]} 65. Rg4 {[%clk
0:00:02.7]} 65... Ke6 {[%clk 0:00:06.6]} 66. Rg5 {[%clk 0:00:02.2]} 66... Rg8+
{[%clk 0:00:06.2]} 67. Kh7 {[%clk 0:00:02.7]} 67... Rd8 {[%clk 0:00:06.1]} 68.
h5 {[%clk 0:00:03]} 68... Rxd4 {[%clk 0:00:05.9]} 69. h6 {[%clk 0:00:03.1]}
69... Kf7 {[%clk 0:00:06.3]} 70. Rf5+ {[%clk 0:00:03.5]} 70... Ke6 {[%clk
0:00:05]} 71. Kg6 {[%clk 0:00:04]} 1-0